[Event "Schack-SM 2023: Mastarklassen-elit"]
[Site "Helsingborg Arena, Mellersta Stenbocksgatan 14, Helsingborg, Sweden"]
[Date "2023.07.08"]
[Round "8.5"]
[White "Walinder, Lars"]
[Black "Torngren, Gustav"]
[Result "0-1"]
[TimeControl "90 minutes for 40 moves + 30 minutes for the rest of games + 30 seconds per move from move one."]
[WhiteTitle "FM"]
[BlackTitle "FM"]
[WhiteElo "2310"]
[BlackElo "2297"]

1. c4 {[%clk 01:30:09]} {[%emt 00:00:50]} g6 {[%clk 01:29:58]} {[%emt
00:01:03]} 2. e4 {[%clk 01:30:02]} {[%emt 00:00:37]} Bg7 {[%clk 01:29:12]}
{[%emt 00:01:16]} 3. d4 {[%clk 01:30:24]} {[%emt 00:00:08]} d6 {[%clk
01:29:36]} {[%emt 00:00:06]} 4. Nc3 {[%clk 01:30:45]} {[%emt 00:00:09]} c5
{[%clk 01:29:24]} {[%emt 00:00:42]} 5. dxc5 {[%clk 01:27:00]} {[%emt 00:04:15]}
Bxc3+ {[%clk 01:29:04]} {[%emt 00:00:51]} 6. bxc3 {[%clk 01:27:23]} {[%emt
00:00:06]} dxc5 {[%emt 00:00:05]} 7. Qc2 {[%clk 01:18:53]} {[%emt 00:08:59]}
Qc7 {[%clk 01:29:12]} {[%emt 00:00:47]} 8. Bd3 {[%clk 01:14:49]} {[%emt
00:04:35]} Nc6 {[%clk 01:20:52]} {[%emt 00:08:50]} 9. Ne2 {[%clk 01:14:13]}
{[%emt 00:01:06]} b6 {[%clk 01:16:23]} {[%emt 00:04:59]} 10. O-O {[%clk
01:11:56]} {[%emt 00:02:46]} Bb7 {[%clk 01:09:32]} {[%emt 00:07:21]} 11. f4
{[%clk 01:08:34]} {[%emt 00:03:52]} f6 {[%clk 01:09:41]} {[%emt 00:00:20]} 12.
Be3 {[%clk 01:07:13]} {[%emt 00:01:52]} O-O-O {[%clk 01:07:46]} {[%emt
00:02:26]} 13. Nc1 {[%clk 00:59:24]} {[%emt 00:08:19]} Nh6 {[%clk 01:02:54]}
{[%emt 00:05:23]} 14. h3 {[%clk 00:56:20]} {[%emt 00:03:33]} Nf7 {[%clk
00:58:03]} {[%emt 00:05:21]} 15. Nb3 {[%clk 00:53:50]} {[%emt 00:03:00]} g5
{[%clk 00:51:19]} {[%emt 00:07:13]} 16. a4 {[%clk 00:53:19]} {[%emt 00:01:02]}
gxf4 {[%clk 00:50:34]} {[%emt 00:01:16]} 17. Bxf4 {[%clk 00:53:31]} {[%emt
00:00:17]} Nce5 {[%clk 00:50:47]} {[%emt 00:00:16]} 18. Be2 {[%clk 00:53:21]}
{[%emt 00:00:40]} Qc6 {[%clk 00:45:50]} {[%emt 00:05:27]} 19. Nd2 {[%clk
00:52:10]} {[%emt 00:01:41]} Rhg8 {[%clk 00:43:32]} {[%emt 00:02:48]} 20. Rf2
{[%clk 00:51:32]} {[%emt 00:01:09]} a5 {[%clk 00:24:11]} {[%emt 00:19:51]} 21.
Re1 {[%clk 00:49:09]} {[%emt 00:02:52]} Kb8 {[%clk 00:23:46]} {[%emt 00:00:56]}
22. Bf1 {[%clk 00:44:58]} {[%emt 00:04:40]} Ka7 {[%clk 00:24:16]} 23. Kh1
{[%clk 00:38:33]} {[%emt 00:06:56]} Qe6 {[%clk 00:22:58]} {[%emt 00:01:48]} 24.
Bh2 {[%clk 00:26:12]} {[%emt 00:12:50]} Nd6 {[%clk 00:21:50]} {[%emt 00:01:38]}
25. Qb3 {[%clk 00:18:37]} {[%emt 00:08:06]} Bc6 {[%clk 00:21:33]} {[%emt
00:00:47]} 26. Qc2 {[%clk 00:12:47]} {[%emt 00:06:20]} Qd7 {[%clk 00:19:47]}
{[%emt 00:02:15]} 27. Ra1 {[%clk 00:12:21]} {[%emt 00:00:57]} Qb7 {[%clk
00:19:33]} {[%emt 00:00:44]} 28. Re1 {[%clk 00:12:13]} {[%emt 00:00:37]} Rg6
{[%clk 00:19:39]} {[%emt 00:00:25]} 29. Rf4 {[%clk 00:11:10]} {[%emt 00:01:32]}
Rdg8 {[%clk 00:19:13]} {[%emt 00:00:55]} 30. Rh4 {[%clk 00:09:06]} {[%emt
00:02:35]} R6g7 {[%clk 00:18:48]} {[%emt 00:00:56]} 31. Bxe5 {[%clk 00:08:31]}
{[%emt 00:01:05]} fxe5 {[%clk 00:19:17]} {[%emt 00:00:02]} 32. Nf3 {[%clk
00:08:20]} {[%emt 00:00:40]} Nf7 {[%clk 00:17:21]} {[%emt 00:02:26]} 33. Rh5
{[%clk 00:08:21]} {[%emt 00:00:28]} Qc7 {[%clk 00:12:52]} {[%emt 00:04:59]} 34.
Rd1 {[%clk 00:08:04]} {[%emt 00:00:47]} e6 {[%clk 00:12:50]} {[%emt 00:00:32]}
35. Rd2 {[%clk 00:07:01]} {[%emt 00:01:34]} h6 {[%clk 00:10:24]} {[%emt
00:02:55]} 36. Bd3 {[%clk 00:06:38]} {[%emt 00:00:54]} Rg3 {[%clk 00:04:08]}
{[%emt 00:06:44]} 37. Qd1 {[%clk 00:05:37]} {[%emt 00:01:32]} Ka6 {[%clk
00:04:00]} {[%emt 00:00:38]} 38. Bc2 {[%clk 00:05:48]} {[%emt 00:00:20]} Be8
{[%clk 00:02:37]} {[%emt 00:01:53]} 39. Qe1 {[%clk 00:05:24]} {[%emt 00:00:54]}
Qe7 {[%clk 00:01:49]} {[%emt 00:01:16]} 40. Bd1 {[%clk 00:03:39]} {[%emt
00:02:17]} Qf6 {[%clk 00:01:48]} {[%emt 00:00:31]} 41. Rf2 {[%clk 00:27:44]}
{[%emt 00:06:24]} Qg6 {[%clk 00:17:41]} {[%emt 00:14:38]} 42. Nxe5 {[%clk
00:16:18]} {[%emt 00:11:56]} Nxe5 {[%clk 00:12:41]} {[%emt 00:05:30]} 43. Rxe5
{[%clk 00:16:37]} {[%emt 00:00:11]} Qg7 {[%clk 00:07:51]} {[%emt 00:05:19]} 44.
Rxe6 {[%clk 00:14:24]} {[%emt 00:02:43]} Bd7 {[%clk 00:08:20]} 45. Bg4 {[%clk
00:03:18]} {[%emt 00:11:36]} Rxg4 {[%clk 00:08:28]} {[%emt 00:00:22]} 46. Rxb6+
{[%clk 00:03:32]} {[%emt 00:00:16]} Kxb6 {[%clk 00:08:57]} {[%emt 00:00:02]} 47.
Qb1+ {[%clk 00:02:47]} {[%emt 00:01:15]} Kc7 {[%clk 00:08:39]} {[%emt
00:00:48]} 48. Rb2 {[%clk 00:02:34]} {[%emt 00:00:43]} Bc6 {[%clk 00:07:30]}
{[%emt 00:01:38]} 49. hxg4 {[%clk 00:02:59]} {[%emt 00:00:06]} Qxg4 {[%clk
00:06:14]} {[%emt 00:01:45]} 50. Qf1 {[%clk 00:03:15]} {[%emt 00:00:14]} Rd8
{[%clk 00:06:03]} {[%emt 00:00:42]} 0-1

[Event "Schack-SM 2023: Veteran-SM 65+"]
[Site "Helsingborg Arena, Mellersta Stenbocksgatan 14, Helsingborg, Sweden"]
[Date "2023.07.08"]
[Round "8.3"]
[White "Malmdin, Nils-Ake"]
[Black "Gromark, Per-Olof"]
[Result "1/2-1/2"]
[TimeControl "90 minutes for 40 moves + 30 minutes for the rest of games + 30 seconds per move from move one."]
[WhiteTitle "FM"]
[WhiteElo "2091"]
[BlackElo "1875"]

1. e4 {[%clk 01:30:30]} {[%emt 00:00:28]} c5 {[%clk 01:30:54]} {[%emt
00:00:07]} 2. Nf3 {[%clk 01:30:42]} {[%emt 00:00:16]} e6 {[%clk 01:31:18]}
{[%emt 00:00:07]} 3. d4 {[%clk 01:30:56]} {[%emt 00:00:16]} cxd4 {[%clk
01:31:43]} {[%emt 00:00:06]} 4. Nxd4 {[%clk 01:31:07]} {[%emt 00:00:18]} Nf6
{[%clk 01:31:45]} {[%emt 00:00:28]} 5. Nc3 {[%clk 01:30:41]} {[%emt 00:00:56]}
Nc6 {[%clk 01:32:07]} {[%emt 00:00:09]} 6. Be3 {[%clk 01:30:49]} {[%emt
00:00:20]} Bb4 {[%clk 01:32:07]} {[%emt 00:00:31]} 7. Bd3 {[%clk 01:29:39]}
{[%emt 00:01:40]} d5 {[%clk 01:30:44]} {[%emt 00:01:53]} 8. exd5 {[%clk
01:22:10]} {[%emt 00:07:59]} Nxd5 {[%clk 01:28:23]} {[%emt 00:02:52]} 9. Nxc6
{[%clk 01:21:06]} {[%emt 00:01:34]} bxc6 {[%clk 01:26:40]} {[%emt 00:02:13]} 10.
Bd2 {[%clk 01:13:54]} {[%emt 00:07:41]} O-O {[%clk 01:23:51]} {[%emt 00:03:20]}
11. a3 {[%clk 01:12:37]} {[%emt 00:01:47]} Nxc3 {[%clk 01:19:39]} {[%emt
00:04:42]} 12. bxc3 {[%clk 01:09:40]} {[%emt 00:03:26]} Bd6 {[%clk 01:13:43]}
{[%emt 00:06:26]} 13. Qh5 {[%clk 01:00:10]} {[%emt 00:10:00]} f5 {[%clk
01:11:19]} {[%emt 00:02:55]} 14. O-O {[%clk 00:57:01]} {[%emt 00:03:37]} Bd7
{[%clk 01:06:07]} {[%emt 00:05:43]} 15. a4 {[%clk 00:55:34]} {[%emt 00:01:58]}
Qc7 {[%clk 00:59:29]} {[%emt 00:07:08]} 16. a5 {[%clk 00:51:22]} {[%emt
00:04:42]} Kh8 {[%clk 00:56:51]} {[%emt 00:03:07]} 17. Ra4 {[%clk 00:45:02]}
{[%emt 00:06:49]} Be8 {[%clk 00:51:17]} {[%emt 00:06:05]} 18. Qh3 {[%clk
00:39:44]} {[%emt 00:05:46]} Bg6 {[%clk 00:49:10]} {[%emt 00:02:40]} 19. f4
{[%clk 00:36:11]} {[%emt 00:04:03]} Be8 {[%clk 00:46:25]} {[%emt 00:03:15]} 20.
Raa1 {[%clk 00:27:11]} {[%emt 00:09:29]} c5 {[%clk 00:43:38]} {[%emt 00:03:18]}
21. c4 {[%clk 00:26:29]} {[%emt 00:01:12]} Bc6 {[%clk 00:41:01]} {[%emt
00:03:06]} 22. Rae1 {[%clk 00:18:03]} {[%emt 00:08:56]} Rf6 {[%clk 00:38:13]}
{[%emt 00:03:18]} 23. Rf2 {[%clk 00:17:47]} {[%emt 00:00:46]} Rg6 {[%clk
00:37:37]} {[%emt 00:01:07]} 24. Qe3 {[%clk 00:16:25]} {[%emt 00:01:50]} Kg8
{[%clk 00:32:11]} {[%emt 00:05:58]} 25. Rb1 {[%clk 00:14:05]} {[%emt 00:02:50]}
Rb8 {[%clk 00:29:22]} {[%emt 00:03:19]} 26. Qe1 {[%clk 00:14:18]} {[%emt
00:00:14]} Rxb1 {[%clk 00:23:32]} {[%emt 00:06:23]} 27. Qxb1 {[%clk 00:12:47]}
{[%emt 00:02:00]} Rf6 {[%clk 00:24:00]} {[%emt 00:00:02]} 28. Bc3 {[%clk
00:09:28]} {[%emt 00:02:25]} 1/2-1/2

[Event "Schack-SM 2023: Veteran-SM 50+"]
[Site "Helsingborg Arena, Mellersta Stenbocksgatan 14, Helsingborg, Sweden"]
[Date "2023.07.08"]
[Round "8.3"]
[White "Kirppo, Ronny"]
[Black "Eriksson, Bengt"]
[Result "1-0"]
[TimeControl "90 minutes for 40 moves + 30 minutes for the rest of games + 30 seconds per move from move one."]
[WhiteElo "1886"]
[BlackElo "2016"]

1. d4 {[%clk 01:30:57]} {[%emt 00:00:01]} Nf6 {[%clk 01:29:22]} {[%emt
00:01:39]} 2. c4 {[%clk 01:31:21]} {[%emt 00:00:07]} e5 {[%clk 01:28:54]}
{[%emt 00:00:58]} 3. dxe5 {[%clk 01:31:36]} {[%emt 00:00:15]} Ng4 {[%clk
01:28:46]} {[%emt 00:00:37]} 4. Bf4 {[%clk 01:31:53]} {[%emt 00:00:13]} Bb4+
{[%clk 01:26:27]} {[%emt 00:02:49]} 5. Nd2 {[%clk 01:32:13]} {[%emt 00:00:11]}
d6 {[%clk 01:24:55]} {[%emt 00:02:02]} 6. a3 {[%clk 00:55:11]} {[%emt
00:37:32]} dxe5 {[%clk 01:23:38]} {[%emt 00:01:45]} 7. Bg3 {[%clk 00:53:26]}
{[%emt 00:02:15]} Bxd2+ {[%clk 01:19:57]} {[%emt 00:04:11]} 8. Qxd2 {[%clk
00:53:55]} {[%emt 00:00:02]} Qxd2+ {[%clk 01:20:15]} {[%emt 00:00:12]} 9. Kxd2
{[%clk 00:54:17]} {[%emt 00:00:08]} Nc6 {[%clk 01:20:27]} {[%emt 00:00:18]} 10.
e3 {[%clk 00:41:26]} {[%emt 00:13:21]} Be6 {[%clk 01:03:17]} {[%emt 00:17:40]}
11. Nf3 {[%clk 00:33:26]} {[%emt 00:08:30]} O-O-O+ {[%clk 00:47:54]} {[%emt
00:15:52]} 12. Kc3 {[%clk 00:33:50]} {[%emt 00:00:07]} Nf6 {[%clk 00:42:35]}
{[%emt 00:05:49]} 13. Nd2 {[%clk 00:23:53]} {[%emt 00:10:27]} Rd7 {[%clk
00:18:08]} {[%emt 00:24:57]} 14. f3 {[%clk 00:24:04]} {[%emt 00:00:18]} Rhd8
{[%clk 00:17:41]} {[%emt 00:00:58]} 15. Rd1 {[%clk 00:23:30]} {[%emt 00:01:05]}
b5 {[%clk 00:12:46]} {[%emt 00:05:25]} 16. Be2 {[%clk 00:20:23]} {[%emt
00:03:36]} a5 {[%clk 00:12:13]} {[%emt 00:01:03]} 17. b3 {[%clk 00:17:45]}
{[%emt 00:03:09]} b4+ {[%clk 00:11:49]} {[%emt 00:00:53]} 18. axb4 {[%clk
00:17:52]} {[%emt 00:00:23]} axb4+ {[%clk 00:11:37]} {[%emt 00:00:42]} 19. Kc2
{[%clk 00:17:58]} {[%emt 00:00:24]} Bf5+ {[%clk 00:11:31]} {[%emt 00:00:37]} 20.
Kc1 {[%clk 00:16:08]} {[%emt 00:02:19]} Na5 {[%clk 00:10:03]} {[%emt 00:01:58]}
21. Ne4 {[%clk 00:12:21]} {[%emt 00:04:17]} Bxe4 {[%clk 00:02:05]} {[%emt
00:08:28]} 22. fxe4 {[%clk 00:10:25]} {[%emt 00:02:26]} Nxb3+ {[%clk 00:01:24]}
{[%emt 00:01:11]} 23. Kc2 {[%clk 00:10:40]} {[%emt 00:00:14]} Rxd1 {[%clk
00:00:48]} {[%emt 00:01:07]} 24. Rxd1 {[%clk 00:10:40]} {[%emt 00:00:30]} Rxd1
{[%clk 00:00:39]} {[%emt 00:00:39]} 25. Bxd1 {[%clk 00:10:40]} {[%emt
00:00:30]} Nc5 {[%clk 00:01:06]} {[%emt 00:00:03]} 26. Bxe5 {[%clk 00:10:20]}
{[%emt 00:00:50]} Ncxe4 {[%clk 00:00:34]} {[%emt 00:01:03]} 27. Bf3 {[%clk
00:08:26]} {[%emt 00:02:19]} Nc5 {[%clk 00:00:37]} {[%emt 00:00:32]} 28. Bd4
{[%clk 00:07:07]} {[%emt 00:01:48]} Na6 {[%clk 00:00:34]} {[%emt 00:00:33]} 29.
Bc6 {[%clk 00:05:42]} {[%emt 00:01:52]} Nb8 {[%clk 00:00:35]} {[%emt 00:00:33]}
30. Bf3 {[%clk 00:05:32]} {[%emt 00:00:39]} Ne8 {[%clk 00:00:34]} {[%emt
00:00:32]} 31. Kb3 {[%clk 00:05:33]} {[%emt 00:00:28]} Na6 {[%clk 00:00:59]}
{[%emt 00:00:06]} 32. Bc6 {[%clk 00:05:32]} {[%emt 00:00:29]} Nf6 {[%clk
00:00:34]} {[%emt 00:00:56]} 33. Ka4 {[%clk 00:04:33]} {[%emt 00:01:28]} Nb8
{[%clk 00:00:42]} {[%emt 00:00:23]} 34. Bf3 {[%clk 00:04:47]} {[%emt 00:00:13]}
b3 {[%emt 00:00:45]} 35. Kxb3 {[%clk 00:05:05]} {[%emt 00:00:10]} Kd7 {[%clk
00:00:39]} {[%emt 00:00:24]} 36. h4 {[%clk 00:01:57]} {[%emt 00:03:38]} Ne8
{[%clk 00:01:05]} {[%emt 00:00:03]} 37. Bg4+ {[%clk 00:01:45]} {[%emt
00:00:42]} Kd6 {[%clk 00:00:53]} {[%emt 00:00:42]} 38. e4 {[%clk 00:01:59]}
{[%emt 00:00:15]} Nc6 {[%clk 00:00:32]} {[%emt 00:00:52]} 39. c5+ {[%clk
00:01:49]} {[%emt 00:00:39]} Ke7 {[%clk 00:00:54]} {[%emt 00:00:09]} 40. Bc3
{[%clk 00:01:17]} {[%emt 00:01:01]} Nf6 {[%clk 00:00:34]} {[%emt 00:00:50]} 41.
Bf3 {[%clk 00:27:49]} {[%emt 00:03:58]} Ke6 {[%clk 00:22:26]} {[%emt 00:08:39]}
42. g3 {[%clk 00:18:33]} {[%emt 00:09:44]} g6 {[%clk 00:16:07]} {[%emt
00:06:51]} 43. Ka4 {[%clk 00:14:41]} {[%emt 00:04:22]} Ne5 {[%clk 00:05:42]}
{[%emt 00:10:56]} 44. Bg2 {[%clk 00:14:45]} {[%emt 00:00:24]} c6 {[%clk
00:04:20]} {[%emt 00:01:53]} 45. Bh3+ {[%clk 00:14:57]} {[%emt 00:00:18]} Nfg4
{[%clk 00:02:38]} {[%emt 00:02:12]} 46. Bxe5 {[%clk 00:15:09]} {[%emt
00:00:17]} Kxe5 {[%clk 00:03:06]} {[%emt 00:00:03]} 47. Bxg4 {[%clk 00:15:29]}
{[%emt 00:00:10]} Kxe4 {[%clk 00:00:53]} {[%emt 00:02:43]} 48. Ka5 {[%clk
00:13:38]} {[%emt 00:02:21]} f5 {[%clk 00:01:17]} {[%emt 00:00:06]} 49. Bd1
{[%clk 00:13:57]} {[%emt 00:00:11]} h5 {[%clk 00:00:33]} {[%emt 00:01:14]} 50.
Kb6 {[%clk 00:14:13]} {[%emt 00:00:15]} f4 {[%clk 00:00:54]} {[%emt 00:00:08]}
51. gxf4 {[%clk 00:14:32]} {[%emt 00:00:11]} Kxf4 {[%clk 00:01:17]} {[%emt
00:00:07]} 52. Kxc6 {[%clk 00:14:53]} {[%emt 00:00:09]} Kg3 {[%clk 00:01:37]}
{[%emt 00:00:10]} 53. Bc2 {[%clk 00:14:45]} {[%emt 00:00:38]} Kxh4 {[%clk
00:01:39]} {[%emt 00:00:28]} 54. Bxg6 {[%clk 00:15:13]} {[%emt 00:00:02]} 1-0

[Event "Schack-SM 2023: Mastarklassen"]
[Site "Helsingborg Arena, Mellersta Stenbocksgatan 14, Helsingborg, Sweden"]
[Date "2023.07.07"]
[Round "7.9"]
[White "Troberg Eskola, Love"]
[Black "Persson, Lars 1971"]
[Result "1-0"]
[TimeControl "90 minutes for 40 moves + 30 minutes for the rest of games + 30 seconds per move from move one."]
[WhiteElo "2038"]
[BlackElo "1941"]

1. c4 {[%clk 01:30:57]} {[%emt 00:00:03]} e5 {[%clk 01:29:57]} {[%emt
00:01:04]} 2. Nc3 {[%clk 01:31:22]} {[%emt 00:00:05]} Bb4 {[%clk 01:30:20]}
{[%emt 00:00:07]} 3. Qb3 {[%clk 01:31:45]} {[%emt 00:00:06]} Bxc3 {[%clk
01:25:23]} {[%emt 00:05:27]} 4. Qxc3 {[%clk 01:32:14]} {[%emt 00:00:03]} Nc6
{[%clk 01:25:26]} {[%emt 00:00:26]} 5. b4 {[%clk 01:31:18]} {[%emt 00:01:26]}
Qe7 {[%clk 01:23:29]} {[%emt 00:02:26]} 6. b5 {[%clk 01:30:48]} {[%emt
00:01:01]} Nd8 {[%clk 01:23:11]} {[%emt 00:00:48]} 7. Bb2 {[%clk 01:29:14]}
{[%emt 00:02:04]} d6 {[%clk 01:20:16]} {[%emt 00:03:25]} 8. f4 {[%clk
01:28:16]} {[%emt 00:01:28]} f6 {[%clk 01:18:47]} {[%emt 00:01:59]} 9. fxe5
{[%clk 01:27:06]} {[%emt 00:01:39]} fxe5 {[%clk 01:17:26]} {[%emt 00:01:51]} 10.
g3 {[%clk 01:23:51]} {[%emt 00:03:46]} Nf6 {[%clk 01:11:47]} {[%emt 00:06:08]}
11. Bg2 {[%clk 01:23:53]} {[%emt 00:00:28]} O-O {[%clk 00:48:15]} {[%emt
00:24:02]} 12. Nf3 {[%clk 01:24:08]} {[%emt 00:00:15]} a6 {[%clk 00:33:58]}
{[%emt 00:14:48]} 13. a4 {[%clk 01:24:22]} {[%emt 00:00:16]} axb5 {[%clk
00:34:15]} {[%emt 00:00:12]} 14. axb5 {[%clk 01:24:39]} {[%emt 00:00:14]} Rxa1+
{[%clk 00:34:36]} {[%emt 00:00:09]} 15. Bxa1 {[%clk 01:25:00]} {[%emt
00:00:11]} Ne6 {[%clk 00:30:01]} {[%emt 00:05:03]} 16. O-O {[%clk 01:22:49]}
{[%emt 00:02:40]} Ne4 {[%clk 00:22:05]} {[%emt 00:08:26]} 17. Qa3 {[%clk
01:22:34]} {[%emt 00:00:45]} N4c5 {[%clk 00:21:09]} {[%emt 00:01:26]} 18. Rb1
{[%clk 01:19:52]} {[%emt 00:03:12]} Qf7 {[%clk 00:19:41]} {[%emt 00:01:58]} 19.
Qe3 {[%clk 01:19:33]} {[%emt 00:00:49]} Qg6 {[%clk 00:18:41]} {[%emt 00:01:30]}
20. d3 {[%clk 01:19:04]} {[%emt 00:00:59]} Bd7 {[%clk 00:18:12]} {[%emt
00:01:00]} 21. Bc3 {[%clk 01:17:11]} {[%emt 00:02:23]} Ra8 {[%clk 00:16:41]}
{[%emt 00:02:01]} 22. Bb4 {[%clk 01:17:09]} {[%emt 00:00:32]} Ra2 {[%clk
00:13:25]} {[%emt 00:03:45]} 23. Nxe5 {[%clk 01:11:40]} {[%emt 00:06:00]} dxe5
{[%clk 00:04:43]} {[%emt 00:09:12]} 24. Bxc5 {[%clk 01:12:09]} Nxc5 {[%clk
00:04:15]} {[%emt 00:00:57]} 25. Qxc5 {[%clk 01:12:37]} {[%emt 00:00:02]} Rxe2
{[%clk 00:04:06]} {[%emt 00:00:40]} 26. Qxc7 {[%clk 00:46:02]} {[%emt
00:27:04]} Rxg2+ {[%clk 00:02:30]} {[%emt 00:02:06]} 27. Kxg2 {[%clk 00:46:26]}
{[%emt 00:00:07]} Qxd3 {[%clk 00:02:50]} {[%emt 00:00:09]} 28. Qd8+ {[%clk
00:35:35]} {[%emt 00:11:21]} Kf7 {[%clk 00:03:18]} {[%emt 00:00:03]} 29. Rf1+
{[%clk 00:35:58]} {[%emt 00:00:06]} Kg6 {[%clk 00:03:36]} {[%emt 00:00:13]} 30.
Qb6+ {[%clk 00:28:29]} {[%emt 00:07:59]} Kh5 {[%clk 00:03:47]} {[%emt
00:00:18]} 31. Rf7 {[%clk 00:24:10]} {[%emt 00:04:50]} Qe4+ {[%clk 00:03:20]}
{[%emt 00:00:56]} 32. Kg1 {[%clk 00:21:11]} {[%emt 00:03:29]} Bh3 {[%clk
00:02:51]} {[%emt 00:00:59]} 33. g4+ {[%clk 00:18:12]} {[%emt 00:03:30]} Qxg4+
{[%clk 00:01:49]} {[%emt 00:01:32]} 34. Kf2 {[%clk 00:18:40]} {[%emt 00:00:02]}
Qg2+ {[%clk 00:02:02]} {[%emt 00:00:15]} 35. Ke1 {[%clk 00:19:05]} {[%emt
00:00:07]} Qh1+ {[%clk 00:01:51]} {[%emt 00:00:40]} 36. Kd2 {[%clk 00:19:29]}
{[%emt 00:00:06]} Qxh2+ {[%clk 00:02:13]} {[%emt 00:00:09]} 37. Qf2 {[%clk
00:17:37]} {[%emt 00:02:22]} Qxf2+ {[%clk 00:01:37]} {[%emt 00:01:05]} 38. Rxf2
{[%clk 00:18:06]} {[%emt 00:00:02]} Be6 {[%clk 00:01:45]} {[%emt 00:00:21]} 39.
c5 {[%clk 00:18:20]} {[%emt 00:00:16]} Kg5 {[%emt 00:02:19]} 40. Rf8 {[%clk
00:17:52]} Bd5 {[%clk 00:00:44]} {[%emt 00:00:40]} 41. Rd8 {[%clk 00:12:52]}
{[%emt 00:05:30]} Bc4 {[%clk 00:02:12]} {[%emt 00:29:02]} 42. c6 {[%clk
00:28:11]} {[%emt 00:15:11]} bxc6 {[%clk 00:02:23]} {[%emt 00:00:19]} 43. b6
{[%clk 00:26:15]} {[%emt 00:02:25]} Ba6 {[%clk 00:02:40]} {[%emt 00:00:13]} 44.
Ra8 {[%clk 00:26:31]} {[%emt 00:00:14]} Bb7 {[%clk 00:03:00]} {[%emt 00:00:10]}
45. Ra7 {[%clk 00:26:54]} {[%emt 00:00:07]} Bc8 {[%clk 00:03:20]} {[%emt
00:00:10]} 46. Rc7 {[%clk 00:24:31]} {[%emt 00:02:53]} Ba6 {[%clk 00:03:43]}
{[%emt 00:00:08]} 47. Kc3 {[%clk 00:24:13]} {[%emt 00:00:48]} c5 {[%clk
00:02:41]} {[%emt 00:01:32]} 48. Rxc5 {[%clk 00:24:24]} {[%emt 00:00:19]} Kf4
{[%clk 00:02:42]} {[%emt 00:00:29]} 49. Kb4 {[%clk 00:24:28]} {[%emt 00:00:25]}
e4 {[%clk 00:01:47]} {[%emt 00:01:26]} 50. Ra5 {[%clk 00:22:19]} {[%emt
00:02:38]} Bb7 {[%clk 00:02:06]} {[%emt 00:00:11]} 51. Ra7 {[%clk 00:22:40]}
{[%emt 00:00:09]} Bd5 {[%clk 00:02:16]} {[%emt 00:00:21]} 52. Kc5 {[%clk
00:22:42]} {[%emt 00:00:28]} Ke5 {[%clk 00:01:45]} {[%emt 00:01:01]} 53. Re7
{[%clk 00:22:57]} {[%emt 00:00:14]} Kf6 {[%clk 00:02:07]} {[%emt 00:00:08]} 54.
Kxd5 {[%clk 00:23:17]} {[%emt 00:00:10]} Kxe7 {[%clk 00:02:18]} {[%emt
00:00:19]} 55. b7 {[%clk 00:23:31]} {[%emt 00:00:16]} 1-0

[ePGN "0.1;DGT LiveChess/2.2.5"]

[Event "Schack-SM 2023: Junior-SM"]
[Site "Helsingborg Arena, Mellersta Stenbocksgatan 14, Helsingborg, Sweden"]
[Date "2023.07.07"]
[Round "7.1"]
[White "Seo, Jung Hyun"]
[Black "Strom-Engdahl, Alexander"]
[Result "1/2-1/2"]
[TimeControl "90 minutes for 40 moves + 30 minutes for the rest of the game + 30 seconds per move from move one."]
[WhiteElo "2124"]
[BlackElo "2120"]

1. d4 {[%clk 01:30:56]} {[%emt 00:00:03]} Nf6 {[%clk 01:30:55]} {[%emt
00:00:05]} 2. c4 {[%clk 01:31:12]} {[%emt 00:00:14]} e6 {[%clk 01:31:19]}
{[%emt 00:00:06]} 3. Nf3 {[%clk 01:31:39]} {[%emt 00:00:03]} d5 {[%clk
01:31:42]} {[%emt 00:00:08]} 4. g3 {[%clk 01:32:05]} {[%emt 00:00:04]} dxc4
{[%clk 01:31:50]} {[%emt 00:00:21]} 5. Bg2 {[%clk 01:32:06]} {[%emt 00:00:28]}
c5 {[%clk 01:32:14]} {[%emt 00:00:06]} 6. O-O {[%clk 01:32:30]} {[%emt
00:00:06]} Nc6 {[%clk 01:32:43]} {[%emt 00:00:03]} 7. dxc5 {[%clk 01:32:56]}
{[%emt 00:00:04]} Qxd1 {[%clk 01:33:05]} {[%emt 00:00:07]} 8. Rxd1 {[%clk
01:33:22]} {[%emt 00:00:03]} Bxc5 {[%clk 01:33:24]} {[%emt 00:00:11]} 9. Nbd2
{[%clk 01:33:50]} {[%emt 00:00:02]} c3 {[%clk 01:33:45]} {[%emt 00:00:09]} 10.
bxc3 {[%clk 01:34:17]} {[%emt 00:00:03]} O-O {[%clk 01:34:08]} {[%emt
00:00:08]} 11. Nb3 {[%clk 01:34:46]} Be7 {[%clk 01:34:36]} {[%emt 00:00:01]} 12.
Nfd4 {[%clk 01:35:08]} {[%emt 00:00:08]} Bd7 {[%clk 01:31:07]} {[%emt
00:03:59]} 13. Bg5 {[%clk 01:35:34]} {[%emt 00:00:04]} Rfd8 {[%clk 01:24:08]}
{[%emt 00:07:29]} 14. Rab1 {[%clk 01:31:07]} {[%emt 00:04:57]} Rac8 {[%clk
01:18:47]} {[%emt 00:05:51]} 15. Nb5 {[%clk 01:14:39]} {[%emt 00:16:58]} Be8
{[%clk 01:05:28]} {[%emt 00:13:49]} 16. Rxd8 {[%clk 01:07:21]} {[%emt
00:07:48]} Rxd8 {[%clk 01:02:58]} {[%emt 00:03:00]} 17. N3d4 {[%clk 01:04:13]}
{[%emt 00:03:38]} Nxd4 {[%clk 00:57:44]} {[%emt 00:05:44]} 18. cxd4 {[%clk
01:03:49]} {[%emt 00:00:54]} Bxb5 {[%clk 00:56:17]} {[%emt 00:01:57]} 19. Rxb5
{[%clk 01:04:11]} {[%emt 00:00:08]} b6 {[%clk 00:56:36]} {[%emt 00:00:11]} 20.
e3 {[%clk 00:58:36]} {[%emt 00:06:05]} Kf8 {[%clk 00:52:43]} {[%emt 00:04:23]}
21. a4 {[%clk 00:55:09]} {[%emt 00:03:57]} Ne8 {[%clk 00:49:40]} {[%emt
00:03:33]} 22. Bxe7+ {[%clk 00:51:14]} {[%emt 00:04:23]} 1/2-1/2